[Event "Titled Tuesday Blitz July 18 Early 2023"]
[White "Oro, Faustino"]
[Black "Mathieu, Phileas"]
[WhiteFideId "20000197"]
[BlackFideId "36048410"]
[WhiteElo "2771"]
[BlackElo "2506"]
[Result "1-0"]
[Round "7"]
[TimeControl "180+2"]
[Date "2023.07.18"]
[WhiteClock "0:00:20"]
[BlackClock "0:00:52"]
[Board "80"]

1. e4 {[%clk 0:03:00]}  e6 {[%clk 0:02:57]} 2. d4 {[%clk 0:03:00]}  d5 {[%clk 0:02:57]} 3. Nd2 {[%clk 0:03:01]}  dxe4 {[%clk 0:02:52]} 4. Nxe4 {[%clk 0:03:02]}  Nd7 {[%clk 0:02:51]} 5. Nf3 {[%clk 0:02:57]}  Ngf6 {[%clk 0:02:51]} 6. Nxf6+ {[%clk 0:02:58]}  Nxf6 {[%clk 0:02:52]} 7. Be3 {[%clk 0:02:57]}  b6 {[%clk 0:02:52]} 8. Bd3 {[%clk 0:02:56]}  Bb7 {[%clk 0:02:53]} 9. O-O {[%clk 0:02:57]}  Be7 {[%clk 0:02:52]} 10. c3 {[%clk 0:02:56]}  O-O {[%clk 0:02:52]} 11. h3 {[%clk 0:02:57]}  h6 {[%clk 0:02:52]} 12. Qe2 {[%clk 0:02:57]}  Nd5 {[%clk 0:02:52]} 13. Bd2 {[%clk 0:02:56]}  Bd6 {[%clk 0:02:52]} 14. Ne5 {[%clk 0:02:56]}  c5 {[%clk 0:02:49]} 15. Qe4 {[%clk 0:02:42]}  f5 {[%clk 0:02:48]} 16. Qe2 {[%clk 0:02:41]}  cxd4 {[%clk 0:02:48]} 17. cxd4 {[%clk 0:02:42]}  Qe7 {[%clk 0:02:43]} 18. Ng6 {[%clk 0:02:36]}  Qf7 {[%clk 0:02:41]} 19. Nxf8 {[%clk 0:02:36]}  Rxf8 {[%clk 0:02:41]} 20. Rfe1 {[%clk 0:02:34]}  Re8 {[%clk 0:02:41]} 21. Bb5 {[%clk 0:02:16]}  Re7 {[%clk 0:02:41]} 22. Rac1 {[%clk 0:02:11]}  Nf4 {[%clk 0:02:29]} 23. Bxf4 {[%clk 0:02:08]}  Bxf4 {[%clk 0:02:30]} 24. Rc3 {[%clk 0:02:04]}  Bd6 {[%clk 0:02:21]} 25. Rec1 {[%clk 0:01:53]}  e5 {[%clk 0:02:15]} 26. Bc4 {[%clk 0:01:47]}  Bd5 {[%clk 0:02:15]} 27. Bxd5 {[%clk 0:01:46]}  Qxd5 {[%clk 0:02:16]} 28. Qc4 {[%clk 0:01:38]}  Qxc4 {[%clk 0:02:15]} 29. Rxc4 {[%clk 0:01:39]}  exd4 {[%clk 0:02:16]} 30. Rxd4 {[%clk 0:01:37]}  Bc5 {[%clk 0:02:16]} 31. Rd2 {[%clk 0:01:35]}  a5 {[%clk 0:02:14]} 32. Kf1 {[%clk 0:01:34]}  Kh7 {[%clk 0:02:10]} 33. a3 {[%clk 0:01:24]}  Kg6 {[%clk 0:02:07]} 34. Re1 {[%clk 0:01:23]}  Rf7 {[%clk 0:02:02]} 35. Re6+ {[%clk 0:01:19]}  Kh7 {[%clk 0:02:02]} 36. Rd5 {[%clk 0:01:16]}  f4 {[%clk 0:02:01]} 37. Ke2 {[%clk 0:01:12]}  f3+ {[%clk 0:02:00]} 38. gxf3 {[%clk 0:01:12]}  Rf4 {[%clk 0:02:00]} 39. Re4 {[%clk 0:01:12]}  Rf6 {[%clk 0:01:53]} 40. b4 {[%clk 0:01:12]}  axb4 {[%clk 0:01:54]} 41. axb4 {[%clk 0:01:12]}  Bf8 {[%clk 0:01:55]} 42. f4 {[%clk 0:01:07]}  Rc6 {[%clk 0:01:54]} 43. Kf3 {[%clk 0:01:05]}  Rc3+ {[%clk 0:01:54]} 44. Kg2 {[%clk 0:01:05]}  Rb3 {[%clk 0:01:52]} 45. Rb5 {[%clk 0:01:05]}  Bc5 {[%clk 0:01:46]} 46. Rxc5 {[%clk 0:00:43]}  bxc5 {[%clk 0:01:46]} 47. bxc5 {[%clk 0:00:43]}  Rc3 {[%clk 0:01:45]} 48. Re5 {[%clk 0:00:43]}  Kg6 {[%clk 0:01:46]} 49. f3 {[%clk 0:00:41]}  Kf6 {[%clk 0:01:45]} 50. Kg3 {[%clk 0:00:41]}  Rc2 {[%clk 0:01:43]} 51. h4 {[%clk 0:00:36]}  Kf7 {[%clk 0:01:30]} 52. Rd5 {[%clk 0:00:32]}  Ke7 {[%clk 0:01:29]} 53. Kg4 {[%clk 0:00:30]}  Rg2+ {[%clk 0:01:08]} 54. Kf5 {[%clk 0:00:29]}  g6+ {[%clk 0:01:02]} 55. Ke4 {[%clk 0:00:30]}  Rc2 {[%clk 0:01:01]} 56. Re5+ {[%clk 0:00:24]}  Kd7 {[%clk 0:00:58]} 57. f5 {[%clk 0:00:23]}  Rc4+ {[%clk 0:00:56]} 58. Kd5 {[%clk 0:00:21]}  Rg4 {[%clk 0:00:52]} 59. fxg4 {[%clk 0:00:20]} 1-0


[Site "https://www.chess.com"]

[Event "Titled Tuesday Blitz July 18 Early 2023"]
[White "Mmukka"]
[Black "djokovic74"]
[WhiteElo "2490"]
[BlackElo "2739"]
[Result "0-1"]
[Round "7"]
[TimeControl "180+2"]
[Date "2023.07.18"]
[WhiteClock "0:00:00"]
[BlackClock "0:00:16"]
[Board "81"]

1. e4 {[%clk 0:02:59]}  e6 {[%clk 0:03:00]} 2. d4 {[%clk 0:02:59]}  d5 {[%clk 0:03:01]} 3. Nc3 {[%clk 0:02:59]}  Nf6 {[%clk 0:03:02]} 4. e5 {[%clk 0:02:59]}  Nfd7 {[%clk 0:03:02]} 5. f4 {[%clk 0:02:59]}  c5 {[%clk 0:03:03]} 6. Nf3 {[%clk 0:03:00]}  Nc6 {[%clk 0:03:03]} 7. Be3 {[%clk 0:03:00]}  Rb8 {[%clk 0:03:04]} 8. Qd2 {[%clk 0:02:55]}  Qa5 {[%clk 0:03:04]} 9. Be2 {[%clk 0:02:36]}  b5 {[%clk 0:03:04]} 10. O-O {[%clk 0:02:29]}  b4 {[%clk 0:03:04]} 11. Nd1 {[%clk 0:02:29]}  Ba6 {[%clk 0:03:05]} 12. Bxa6 {[%clk 0:02:27]}  Qxa6 {[%clk 0:03:05]} 13. Bf2 {[%clk 0:02:26]}  Be7 {[%clk 0:03:05]} 14. f5 {[%clk 0:02:24]}  exf5 {[%clk 0:02:41]} 15. Ne3 {[%clk 0:02:23]}  cxd4 {[%clk 0:02:33]} 16. Nxd5 {[%clk 0:02:18]}  O-O {[%clk 0:02:28]} 17. Nxd4 {[%clk 0:02:15]}  Bc5 {[%clk 0:02:28]} 18. Nxf5 {[%clk 0:02:06]}  Bxf2+ {[%clk 0:02:24]} 19. Qxf2 {[%clk 0:02:03]}  Ncxe5 {[%clk 0:02:24]} 20. Qg3 {[%clk 0:01:55]}  g6 {[%clk 0:02:17]} 21. Kh1 {[%clk 0:01:51]}  Kh8 {[%clk 0:02:14]} 22. Nh6 {[%clk 0:01:29]}  Qe6 {[%clk 0:02:12]} 23. Nf4 {[%clk 0:01:27]}  Qe7 {[%clk 0:02:09]} 24. Nh3 {[%clk 0:01:24]}  f5 {[%clk 0:02:08]} 25. Ng5 {[%clk 0:01:21]}  Rf6 {[%clk 0:01:48]} 26. Qh4 {[%clk 0:01:20]}  Rbf8 {[%clk 0:01:48]} 27. Rae1 {[%clk 0:01:19]}  f4 {[%clk 0:01:41]} 28. Re4 {[%clk 0:00:42]}  f3 {[%clk 0:01:09]} 29. g3 {[%clk 0:00:38]}  f2 {[%clk 0:01:04]} 30. Kg2 {[%clk 0:00:27]}  Nc5 {[%clk 0:00:34]} 31. Rxe5 {[%clk 0:00:20]}  Qxe5 {[%clk 0:00:28]} 32. Nhf7+ {[%clk 0:00:19]}  R6xf7 {[%clk 0:00:25]} 33. Nxf7+ {[%clk 0:00:19]}  Rxf7 {[%clk 0:00:25]} 34. Qd8+ {[%clk 0:00:18]}  Kg7 {[%clk 0:00:24]} 35. h4 {[%clk 0:00:17]}  Qe4+ {[%clk 0:00:23]} 36. Kh2 {[%clk 0:00:17]}  Ne6 {[%clk 0:00:23]} 37. Qd2 {[%clk 0:00:14]}  Nd4 {[%clk 0:00:22]} 38. Kh3 {[%clk 0:00:12]}  Qe6+ {[%clk 0:00:19]} 39. Kg2 {[%clk 0:00:12]}  Qe4+ {[%clk 0:00:20]} 40. Kh3 {[%clk 0:00:12]}  h5 {[%clk 0:00:20]} 41. c3 {[%clk 0:00:07]}  Qg4+ {[%clk 0:00:16]} 42. Kg2 {[%clk 0:00:07]}  Qf3+ {[%clk 0:00:15]} 43. Kh3 {[%clk 0:00:06]}  Ne2 {[%clk 0:00:16]} 44. Qg5 {[%clk 0:00:00]}  Nf4+ {[%clk 0:00:16]} 0-1


[Site "https://www.chess.com"]

[Event "Titled Tuesday Blitz July 18 Early 2023"]
[White "Taboas Rodriguez, Daniel"]
[Black "2KRK1"]
[WhiteFideId "2208466"]
[WhiteElo "2483"]
[BlackElo "2677"]
[Result "1-0"]
[Round "7"]
[TimeControl "180+2"]
[Date "2023.07.18"]
[WhiteClock "0:00:11"]
[BlackClock "0:00:00"]
[Board "83"]

1. d4 {[%clk 0:03:00]}  d6 {[%clk 0:02:55]} 2. Nf3 {[%clk 0:02:59]}  Nf6 {[%clk 0:02:56]} 3. c4 {[%clk 0:02:59]}  g6 {[%clk 0:02:53]} 4. Nc3 {[%clk 0:02:59]}  Bf5 {[%clk 0:02:53]} 5. d5 {[%clk 0:02:59]}  Bg7 {[%clk 0:02:52]} 6. Nd4 {[%clk 0:02:59]}  Bd7 {[%clk 0:02:52]} 7. e4 {[%clk 0:02:59]}  O-O {[%clk 0:02:52]} 8. Be2 {[%clk 0:02:59]}  e5 {[%clk 0:02:36]} 9. Nf3 {[%clk 0:02:53]}  Na6 {[%clk 0:02:23]} 10. Bg5 {[%clk 0:02:50]}  h6 {[%clk 0:02:20]} 11. Bh4 {[%clk 0:02:50]}  Qe8 {[%clk 0:02:16]} 12. Nd2 {[%clk 0:02:49]}  Nh7 {[%clk 0:02:13]} 13. O-O {[%clk 0:02:47]}  f5 {[%clk 0:02:10]} 14. exf5 {[%clk 0:02:47]}  gxf5 {[%clk 0:02:09]} 15. Bh5 {[%clk 0:02:47]}  Qb8 {[%clk 0:01:57]} 16. Be7 {[%clk 0:02:47]}  Rc8 {[%clk 0:01:56]} 17. Bg6 {[%clk 0:02:20]}  Nf8 {[%clk 0:01:56]} 18. Qh5 {[%clk 0:02:13]}  Be8 {[%clk 0:01:43]} 19. Bxe8 {[%clk 0:01:45]}  Rxe8 {[%clk 0:01:44]} 20. Bh4 {[%clk 0:01:44]}  Qc8 {[%clk 0:01:39]} 21. Rae1 {[%clk 0:01:40]}  Qd7 {[%clk 0:01:33]} 22. f3 {[%clk 0:01:33]}  Nc5 {[%clk 0:01:11]} 23. Re2 {[%clk 0:01:27]}  Nd3 {[%clk 0:01:08]} 24. g3 {[%clk 0:01:10]}  Nxb2 {[%clk 0:00:56]} 25. Rb1 {[%clk 0:01:08]}  Nd3 {[%clk 0:00:31]} 26. Rxb7 {[%clk 0:01:07]}  Reb8 {[%clk 0:00:32]} 27. Rb1 {[%clk 0:00:52]}  Rxb1+ {[%clk 0:00:22]} 28. Ndxb1 {[%clk 0:00:51]}  Rb8 {[%clk 0:00:22]} 29. g4 {[%clk 0:00:36]}  Nf4 {[%clk 0:00:13]} 30. Qxf5 {[%clk 0:00:33]}  Nxe2+ {[%clk 0:00:08]} 31. Kf2 {[%clk 0:00:31]}  Nxc3 {[%clk 0:00:04]} 32. Nxc3 {[%clk 0:00:31]}  Rb2+ {[%clk 0:00:04]} 33. Ke3 {[%clk 0:00:30]}  Qxf5 {[%clk 0:00:03]} 34. gxf5 {[%clk 0:00:31]}  Rxh2 {[%clk 0:00:02]} 35. Bd8 {[%clk 0:00:30]}  Rc2 {[%clk 0:00:02]} 36. Kd3 {[%clk 0:00:29]}  Rf2 {[%clk 0:00:02]} 37. Ke3 {[%clk 0:00:29]}  Rc2 {[%clk 0:00:02]} 38. Kd3 {[%clk 0:00:29]}  Rh2 {[%clk 0:00:02]} 39. Bxc7 {[%clk 0:00:29]}  Nd7 {[%clk 0:00:02]} 40. Bxd6 {[%clk 0:00:29]}  Rh3 {[%clk 0:00:03]} 41. Ke3 {[%clk 0:00:20]}  Bf8 {[%clk 0:00:03]} 42. Bxf8 {[%clk 0:00:17]}  Kxf8 {[%clk 0:00:04]} 43. Ne4 {[%clk 0:00:18]}  Ke7 {[%clk 0:00:03]} 44. c5 {[%clk 0:00:18]}  Nf6 {[%clk 0:00:02]} 45. d6+ {[%clk 0:00:18]}  Kf7 {[%clk 0:00:03]} 46. c6 {[%clk 0:00:15]}  Rh1 {[%clk 0:00:02]} 47. c7 {[%clk 0:00:11]}  Rc1 {[%clk 0:00:00]} 48. Nxf6 {[%clk 0:00:11]} 1-0


[Site "https://www.chess.com"]

[Event "Titled Tuesday Blitz July 18 Early 2023"]
[White "Alex_Sahakyan2006"]
[Black "Rodriguez Fontecha, Marcos"]
[BlackFideId "2256576"]
[WhiteElo "2676"]
[BlackElo "2470"]
[Result "0-1"]
[Round "7"]
[TimeControl "180+2"]
[Date "2023.07.18"]
[WhiteClock "0:00:00"]
[BlackClock "0:00:05"]
[Board "84"]

1. e4 {[%clk 0:02:56]}  e6 {[%clk 0:02:59]} 2. d4 {[%clk 0:02:47]}  d5 {[%clk 0:02:59]} 3. e5 {[%clk 0:02:41]}  c5 {[%clk 0:02:58]} 4. c3 {[%clk 0:02:41]}  Nc6 {[%clk 0:02:59]} 5. Nf3 {[%clk 0:02:40]}  Qb6 {[%clk 0:02:58]} 6. a3 {[%clk 0:02:38]}  c4 {[%clk 0:02:50]} 7. Be2 {[%clk 0:02:24]}  Na5 {[%clk 0:02:49]} 8. Nbd2 {[%clk 0:02:23]}  Bd7 {[%clk 0:02:49]} 9. O-O {[%clk 0:02:17]}  h6 {[%clk 0:02:38]} 10. Rb1 {[%clk 0:02:13]}  O-O-O {[%clk 0:02:36]} 11. b3 {[%clk 0:01:51]}  cxb3 {[%clk 0:02:31]} 12. c4 {[%clk 0:01:46]}  dxc4 {[%clk 0:02:20]} 13. Nxc4 {[%clk 0:01:42]}  Nxc4 {[%clk 0:02:20]} 14. Bxc4 {[%clk 0:01:41]}  Bc6 {[%clk 0:02:14]} 15. Be3 {[%clk 0:01:18]}  Qc7 {[%clk 0:02:09]} 16. Qxb3 {[%clk 0:01:17]}  Ne7 {[%clk 0:02:05]} 17. Rfc1 {[%clk 0:01:13]}  Kb8 {[%clk 0:01:37]} 18. Bb5 {[%clk 0:00:54]}  Rd5 {[%clk 0:01:23]} 19. a4 {[%clk 0:00:49]}  Ka8 {[%clk 0:01:15]} 20. Nd2 {[%clk 0:00:40]}  f6 {[%clk 0:00:44]} 21. Nc4 {[%clk 0:00:18]}  Bxb5 {[%clk 0:00:32]} 22. axb5 {[%clk 0:00:15]}  Qb8 {[%clk 0:00:25]} 23. Nb6+ {[%clk 0:00:10]}  axb6 {[%clk 0:00:23]} 24. Ra1+ {[%clk 0:00:10]}  Qa7 {[%clk 0:00:23]} 25. Rxa7+ {[%clk 0:00:10]}  Kxa7 {[%clk 0:00:24]} 26. Qa3+ {[%clk 0:00:10]}  Kb8 {[%clk 0:00:23]} 27. exf6 {[%clk 0:00:11]}  gxf6 {[%clk 0:00:22]} 28. Bf4+ {[%clk 0:00:10]}  e5 {[%clk 0:00:23]} 29. dxe5 {[%clk 0:00:08]}  Ng6 {[%clk 0:00:20]} 30. e6+ {[%clk 0:00:05]}  Nxf4 {[%clk 0:00:19]} 31. Qe3 {[%clk 0:00:02]}  Bd6 {[%clk 0:00:16]} 32. g3 {[%clk 0:00:02]}  Nh3+ {[%clk 0:00:13]} 33. Kg2 {[%clk 0:00:02]}  Ng5 {[%clk 0:00:14]} 34. e7 {[%clk 0:00:03]}  Re8 {[%clk 0:00:13]} 35. h4 {[%clk 0:00:03]}  Re5 {[%clk 0:00:10]} 36. Qd4 {[%clk 0:00:02]}  Nf7 {[%clk 0:00:09]} 37. Qxb6 {[%clk 0:00:02]}  R5xe7 {[%clk 0:00:07]} 38. Ra1 {[%clk 0:00:02]}  Bc7 {[%clk 0:00:07]} 39. Qa7+ {[%clk 0:00:02]}  Kc8 {[%clk 0:00:07]} 40. b6 {[%clk 0:00:03]}  Bb8 {[%clk 0:00:07]} 41. Rc1+ {[%clk 0:00:04]}  Kd7 {[%clk 0:00:07]} 42. Qxb7+ {[%clk 0:00:05]}  Ke6 {[%clk 0:00:08]} 43. Qc6+ {[%clk 0:00:05]}  Nd6 {[%clk 0:00:08]} 44. Re1+ {[%clk 0:00:05]}  Kf7 {[%clk 0:00:08]} 45. Qd5+ {[%clk 0:00:05]}  Kg7 {[%clk 0:00:08]} 46. Rxe7+ {[%clk 0:00:05]}  Rxe7 {[%clk 0:00:08]} 47. g4 {[%clk 0:00:06]}  Nf7 {[%clk 0:00:06]} 48. Qa8 {[%clk 0:00:03]}  Be5 {[%clk 0:00:05]} 49. b7 {[%clk 0:00:02]}  h5 {[%clk 0:00:04]} 50. b8=Q {[%clk 0:00:03]}  Bxb8 {[%clk 0:00:04]} 51. Qxb8 {[%clk 0:00:04]}  hxg4 {[%clk 0:00:04]} 52. Qf4 {[%clk 0:00:00]}  Ne5 {[%clk 0:00:05]} 0-1


[Site "https://www.chess.com"]

[Event "Titled Tuesday Blitz July 18 Early 2023"]
[White "WindWhistler11"]
[Black "Nagare Kaivalya Sandip"]
[BlackFideId "25957929"]
[WhiteElo "2465"]
[BlackElo "2658"]
[Result "0-1"]
[Round "7"]
[TimeControl "180+2"]
[Date "2023.07.18"]
[WhiteClock "0:00:00"]
[BlackClock "0:00:06"]
[Board "85"]

1. Nf3 {[%clk 0:03:00]}  d5 {[%clk 0:02:59]} 2. g3 {[%clk 0:03:01]}  Nf6 {[%clk 0:02:59]} 3. c4 {[%clk 0:03:01]}  d4 {[%clk 0:02:57]} 4. Bg2 {[%clk 0:03:02]}  c5 {[%clk 0:02:57]} 5. e3 {[%clk 0:03:02]}  Nc6 {[%clk 0:02:57]} 6. exd4 {[%clk 0:03:03]}  cxd4 {[%clk 0:02:57]} 7. O-O {[%clk 0:03:04]}  e5 {[%clk 0:02:52]} 8. Nxe5 {[%clk 0:02:43]}  Nxe5 {[%clk 0:02:44]} 9. Re1 {[%clk 0:02:41]}  Bd6 {[%clk 0:02:40]} 10. f4 {[%clk 0:02:41]}  d3 {[%clk 0:02:37]} 11. h3 {[%clk 0:02:12]}  O-O {[%clk 0:02:18]} 12. fxe5 {[%clk 0:02:11]}  Bc5+ {[%clk 0:02:17]} 13. Kh2 {[%clk 0:02:09]}  Ng4+ {[%clk 0:01:46]} 14. hxg4 {[%clk 0:02:02]}  Qg5 {[%clk 0:01:46]} 15. Bh3 {[%clk 0:01:06]}  f5 {[%clk 0:01:25]} 16. Qf3 {[%clk 0:01:02]}  Be6 {[%clk 0:00:54]} 17. Qf4 {[%clk 0:00:53]}  Qxf4 {[%clk 0:00:39]} 18. gxf4 {[%clk 0:00:53]}  fxg4 {[%clk 0:00:39]} 19. Bg2 {[%clk 0:00:52]}  Bf2 {[%clk 0:00:39]} 20. Re3 {[%clk 0:00:44]}  Rxf4 {[%clk 0:00:31]} 21. Rxd3 {[%clk 0:00:40]}  Raf8 {[%clk 0:00:24]} 22. Bd5 {[%clk 0:00:33]}  g3+ {[%clk 0:00:20]} 23. Kg2 {[%clk 0:00:32]}  Bxd5+ {[%clk 0:00:18]} 24. cxd5 {[%clk 0:00:32]}  Be1 {[%clk 0:00:15]} 25. d6 {[%clk 0:00:18]}  Rf2+ {[%clk 0:00:14]} 26. Kg1 {[%clk 0:00:15]}  Rf1+ {[%clk 0:00:13]} 27. Kg2 {[%clk 0:00:14]}  R1f2+ {[%clk 0:00:11]} 28. Kg1 {[%clk 0:00:14]}  Rh2 {[%clk 0:00:09]} 29. d7 {[%clk 0:00:12]}  Bf2+ {[%clk 0:00:09]} 30. Kf1 {[%clk 0:00:11]}  g2+ {[%clk 0:00:09]} 31. Ke2 {[%clk 0:00:10]}  g1=Q {[%clk 0:00:09]} 32. Rd5 {[%clk 0:00:08]}  Bb6+ {[%clk 0:00:08]} 33. Kd3 {[%clk 0:00:08]}  Qf1+ {[%clk 0:00:08]} 34. Kc3 {[%clk 0:00:08]}  Qxc1+ {[%clk 0:00:08]} 35. Kb3 {[%clk 0:00:08]}  Qc6 {[%clk 0:00:07]} 36. Nc3 {[%clk 0:00:07]}  Rd8 {[%clk 0:00:07]} 37. Rd6 {[%clk 0:00:07]}  Qxd6 {[%clk 0:00:07]} 38. exd6 {[%clk 0:00:07]}  Rxd2 {[%clk 0:00:06]} 39. Re1 {[%clk 0:00:08]}  Rxd6 {[%clk 0:00:06]} 40. Re8+ {[%clk 0:00:03]}  Kf7 {[%clk 0:00:06]} 41. Ne4 {[%clk 0:00:01]}  R6xd7 {[%clk 0:00:06]} 42. Re5 {[%clk 0:00:01]}  Re7 {[%clk 0:00:06]} 43. Ng5+ {[%clk 0:00:00]}  Kf6 {[%clk 0:00:06]} 0-1


[Site "https://www.chess.com"]

[Event "Titled Tuesday Blitz July 18 Early 2023"]
[White "Galiot, Goran"]
[Black "Bochnicka, Vladimir"]
[WhiteFideId "931560"]
[BlackFideId "14943450"]
[WhiteElo "2641"]
[BlackElo "2457"]
[Result "0-1"]
[Round "7"]
[TimeControl "180+2"]
[Date "2023.07.18"]
[WhiteClock "0:00:11"]
[BlackClock "0:00:20"]
[Board "87"]

1. d4 {[%clk 0:03:00]}  d5 {[%clk 0:02:55]} 2. c4 {[%clk 0:03:00]}  dxc4 {[%clk 0:02:56]} 3. Nf3 {[%clk 0:03:00]}  Nf6 {[%clk 0:02:56]} 4. e3 {[%clk 0:02:56]}  e6 {[%clk 0:02:56]} 5. Bxc4 {[%clk 0:02:56]}  c5 {[%clk 0:02:57]} 6. O-O {[%clk 0:02:55]}  a6 {[%clk 0:02:57]} 7. a4 {[%clk 0:02:55]}  Nc6 {[%clk 0:02:56]} 8. Qe2 {[%clk 0:02:54]}  cxd4 {[%clk 0:02:56]} 9. Rd1 {[%clk 0:02:54]}  Be7 {[%clk 0:02:55]} 10. exd4 {[%clk 0:02:51]}  O-O {[%clk 0:02:52]} 11. Nc3 {[%clk 0:02:50]}  Nb4 {[%clk 0:02:52]} 12. Bg5 {[%clk 0:02:48]}  Bd7 {[%clk 0:02:40]} 13. Ne5 {[%clk 0:02:35]}  Bc6 {[%clk 0:02:33]} 14. Rac1 {[%clk 0:02:24]}  Bd5 {[%clk 0:02:18]} 15. Nxd5 {[%clk 0:02:16]}  Nbxd5 {[%clk 0:02:15]} 16. Qf3 {[%clk 0:02:02]}  Rc8 {[%clk 0:02:08]} 17. Bd3 {[%clk 0:01:38]}  h6 {[%clk 0:02:06]} 18. Bh4 {[%clk 0:01:34]}  Qb6 {[%clk 0:01:57]} 19. Bxf6 {[%clk 0:01:22]}  Nxf6 {[%clk 0:01:46]} 20. Rb1 {[%clk 0:01:12]}  Rfd8 {[%clk 0:01:46]} 21. Qe3 {[%clk 0:01:01]}  Kf8 {[%clk 0:01:25]} 22. Bf1 {[%clk 0:00:53]}  Rd5 {[%clk 0:01:16]} 23. Bc4 {[%clk 0:00:27]}  Rxe5 {[%clk 0:01:06]} 24. dxe5 {[%clk 0:00:27]}  Qxe3 {[%clk 0:01:06]} 25. fxe3 {[%clk 0:00:27]}  Rxc4 {[%clk 0:01:07]} 26. exf6 {[%clk 0:00:27]}  Bxf6 {[%clk 0:01:08]} 27. Rd7 {[%clk 0:00:24]}  Rb4 {[%clk 0:01:03]} 28. b3 {[%clk 0:00:23]}  Ke8 {[%clk 0:01:01]} 29. Rc7 {[%clk 0:00:22]}  Be5 {[%clk 0:00:58]} 30. Rc4 {[%clk 0:00:22]}  Rb6 {[%clk 0:00:49]} 31. g3 {[%clk 0:00:22]}  Rd6 {[%clk 0:00:47]} 32. Rbc1 {[%clk 0:00:21]}  Rd3 {[%clk 0:00:46]} 33. Rb4 {[%clk 0:00:20]}  Rxe3 {[%clk 0:00:41]} 34. Rxb7 {[%clk 0:00:20]}  Bc3 {[%clk 0:00:29]} 35. Kf2 {[%clk 0:00:17]}  Rd3 {[%clk 0:00:27]} 36. Ke2 {[%clk 0:00:17]}  Rd2+ {[%clk 0:00:24]} 37. Ke3 {[%clk 0:00:18]}  Ba5 {[%clk 0:00:20]} 38. Rc8+ {[%clk 0:00:16]}  Rd8 {[%clk 0:00:21]} 39. Rxd8+ {[%clk 0:00:16]}  Bxd8 {[%clk 0:00:22]} 40. Kd3 {[%clk 0:00:14]}  a5 {[%clk 0:00:22]} 41. Kc4 {[%clk 0:00:14]}  e5 {[%clk 0:00:22]} 42. b4 {[%clk 0:00:14]}  axb4 {[%clk 0:00:22]} 43. Rxb4 {[%clk 0:00:15]}  f5 {[%clk 0:00:22]} 44. Kd5 {[%clk 0:00:16]}  e4 {[%clk 0:00:22]} 45. Rb3 {[%clk 0:00:15]}  Kf7 {[%clk 0:00:22]} 46. Rb7+ {[%clk 0:00:15]}  Kf6 {[%clk 0:00:20]} 47. Ra7 {[%clk 0:00:15]}  e3 {[%clk 0:00:19]} 48. Rb7 {[%clk 0:00:15]}  e2 {[%clk 0:00:18]} 49. Rb1 {[%clk 0:00:15]}  Ba5 {[%clk 0:00:18]} 50. Kc5 {[%clk 0:00:12]}  e1=Q {[%clk 0:00:19]} 51. Rxe1 {[%clk 0:00:12]}  Bxe1 {[%clk 0:00:20]} 52. Kb5 {[%clk 0:00:13]}  Kg5 {[%clk 0:00:20]} 53. a5 {[%clk 0:00:11]}  Bxa5 {[%clk 0:00:20]} 0-1


[Site "https://www.chess.com"]

[Event "Titled Tuesday Blitz July 18 Early 2023"]
[White "Komov, Roman"]
[Black "Arnold, Ken"]
[WhiteFideId "24175714"]
[BlackFideId "2056836"]
[WhiteElo "2632"]
[BlackElo "2453"]
[Result "1-0"]
[Round "7"]
[TimeControl "180+2"]
[Date "2023.07.18"]
[WhiteClock "0:00:28"]
[BlackClock "0:00:24"]
[Board "88"]

1. e3 {[%clk 0:03:00]}  d5 {[%clk 0:02:55]} 2. b3 {[%clk 0:03:01]}  Nf6 {[%clk 0:02:54]} 3. Bb2 {[%clk 0:03:02]}  g6 {[%clk 0:02:55]} 4. Nf3 {[%clk 0:03:03]}  Bg7 {[%clk 0:02:55]} 5. c4 {[%clk 0:03:03]}  O-O {[%clk 0:02:55]} 6. cxd5 {[%clk 0:03:02]}  Nxd5 {[%clk 0:02:55]} 7. Bxg7 {[%clk 0:03:03]}  Kxg7 {[%clk 0:02:56]} 8. d4 {[%clk 0:03:04]}  b6 {[%clk 0:02:49]} 9. Be2 {[%clk 0:03:00]}  Bb7 {[%clk 0:02:49]} 10. O-O {[%clk 0:03:00]}  Nd7 {[%clk 0:02:49]} 11. Nbd2 {[%clk 0:02:52]}  c5 {[%clk 0:02:48]} 12. Rc1 {[%clk 0:02:52]}  Rc8 {[%clk 0:02:47]} 13. Nc4 {[%clk 0:02:37]}  N7f6 {[%clk 0:02:40]} 14. Nce5 {[%clk 0:02:29]}  cxd4 {[%clk 0:02:36]} 15. Qxd4 {[%clk 0:02:28]}  e6 {[%clk 0:02:31]} 16. Bb5 {[%clk 0:02:23]}  Qe7 {[%clk 0:02:27]} 17. Nc6 {[%clk 0:02:02]}  Bxc6 {[%clk 0:02:26]} 18. Bxc6 {[%clk 0:02:03]}  Rfd8 {[%clk 0:02:21]} 19. Bxd5 {[%clk 0:01:56]}  Rxc1 {[%clk 0:02:13]} 20. Rxc1 {[%clk 0:01:56]}  Rxd5 {[%clk 0:02:12]} 21. Qb2 {[%clk 0:01:55]}  Qd6 {[%clk 0:02:08]} 22. h3 {[%clk 0:01:47]}  Rd1+ {[%clk 0:02:06]} 23. Rxd1 {[%clk 0:01:44]}  Qxd1+ {[%clk 0:02:05]} 24. Kh2 {[%clk 0:01:45]}  h6 {[%clk 0:02:03]} 25. Ne5 {[%clk 0:01:42]}  Qd6 {[%clk 0:01:56]} 26. f4 {[%clk 0:01:41]}  h5 {[%clk 0:01:49]} 27. a4 {[%clk 0:01:32]}  Qc5 {[%clk 0:01:42]} 28. Nc4 {[%clk 0:01:21]}  a6 {[%clk 0:01:38]} 29. g3 {[%clk 0:01:00]}  b5 {[%clk 0:01:37]} 30. axb5 {[%clk 0:01:00]}  axb5 {[%clk 0:01:37]} 31. Ne5 {[%clk 0:01:01]}  h4 {[%clk 0:01:17]} 32. Ng4 {[%clk 0:00:56]}  hxg3+ {[%clk 0:01:16]} 33. Kxg3 {[%clk 0:00:57]}  Qe7 {[%clk 0:00:59]} 34. Qe5 {[%clk 0:00:57]}  b4 {[%clk 0:00:58]} 35. h4 {[%clk 0:00:57]}  Qd8 {[%clk 0:00:55]} 36. h5 {[%clk 0:00:55]}  gxh5 {[%clk 0:00:54]} 37. Qg5+ {[%clk 0:00:55]}  Kf8 {[%clk 0:00:51]} 38. Nxf6 {[%clk 0:00:52]}  Qd2 {[%clk 0:00:48]} 39. Qc5+ {[%clk 0:00:37]}  Kg7 {[%clk 0:00:44]} 40. Nxh5+ {[%clk 0:00:37]}  Kh7 {[%clk 0:00:36]} 41. Nf6+ {[%clk 0:00:37]}  Kg7 {[%clk 0:00:34]} 42. Ne4 {[%clk 0:00:33]}  Qe1+ {[%clk 0:00:33]} 43. Nf2 {[%clk 0:00:33]}  Qg1+ {[%clk 0:00:32]} 44. Kf3 {[%clk 0:00:33]}  Qe1 {[%clk 0:00:26]} 45. Qd4+ {[%clk 0:00:28]}  f6 {[%clk 0:00:26]} 46. Qd7+ {[%clk 0:00:27]}  Kg6 {[%clk 0:00:24]} 47. Qxe6 {[%clk 0:00:28]} 1-0


[Site "https://www.chess.com"]